bitfinex/quotes_SOLUSD_20240818
["timestamp","ask_amount","ask_price","bid_price","bid_amount"]
[1723990413570,7.72937824,145.55,145.5,8.93]
[1723990413745,16.0344,145.56,145.5,8.93]
[1723990413949,7.72933547,145.55,145.5,8.93]
[1723990414165,16.0344,145.56,145.5,8.93]
[1723990414468,7.72893905,145.55,145.5,8.93]
[1723990414646,16.0344,145.56,145.5,8.93]
[1723990414848,7.72846219,145.55,145.5,8.93]
[1723990415054,16.0344,145.56,145.5,8.93]
[1723990415258,7.72842929,145.55,145.5,8.93]
[1723990415446,16.0344,145.56,145.5,8.93]
[1723990415648,7.72844024,145.55,145.5,8.93]
[1723990415863,16.0344,145.56,145.5,8.93]
[1723990416374,7.72865002,145.55,145.5,8.93]
[1723990416552,9.05549,145.55,145.45,20.0]
[1723990416755,0.12549,145.53,145.44,25.05016003]
[1723990416968,7.72806848,145.52,145.44,17.86]
[1723990417147,1.78661467,145.53,145.44,17.86]
[1723990417470,7.97808466,145.52,145.44,8.93]
[1723990417768,0.25098,145.52,145.44,8.93]
[1723990418072,45.25098,145.52,145.44,8.93]
[1723990418277,7.7275101,145.51,145.45,20.0]
[1723990418447,0.25098,145.52,145.46,8.93]
[1723990418650,7.72906542,145.51,145.46,8.93]
[1723990418963,45.25098,145.52,145.46,8.93]
[1723990419349,7.73609079,145.51,145.46,8.93]
[1723990419669,45.25098,145.52,145.46,8.93]
[1723990419883,7.73736916,145.51,145.46,8.93]
[1723990420173,45.25098,145.52,145.46,8.93]
[1723990420382,7.73685984,145.51,145.46,8.93]
[1723990420555,45.25098,145.52,145.46,8.93]
[1723990420876,7.73744546,145.51,145.45,20.0]
[1723990421183,1.66112467,145.5,145.44,28.93]
[1723990422079,1.78661467,145.51,145.44,28.93]
[1723990423870,1.78661467,145.51,145.44,20.0]
[1723990424180,1.78661467,145.51,145.44,28.93]
[1723990424346,7.73653547,145.5,145.44,28.93]
[1723990424552,1.78661467,145.51,145.44,28.93]
[1723990424773,7.73652955,145.5,145.44,28.93]
[1723990425073,1.78661467,145.51,145.44,28.93]
[1723990425278,7.73654511,145.5,145.44,28.93]
[1723990425473,9.39766978,145.49,145.44,28.93]
[1723990425662,1.66112467,145.49,145.44,28.93]
[1723990425980,13.80156958,145.51,145.44,28.93]
[1723990426199,7.85528571,145.5,145.44,28.93]
[1723990426355,9.39092038,145.49,145.44,28.93]
[1723990426547,1.66112467,145.49,145.44,28.93]
[1723990427357,1.78661467,145.5,145.44,28.93]
[1723990427557,7.73246135,145.49,145.44,28.93]
[1723990427773,1.78661467,145.5,145.44,28.93]
[1723990427980,7.73298751,145.49,145.44,28.93]
[1723990428180,1.78661467,145.5,145.44,28.93]
[1723990428475,7.73299742,145.49,145.44,28.93]
[1723990428693,1.78661467,145.5,145.44,28.93]
[1723990429172,7.73295123,145.49,145.44,28.93]
[1723990429359,1.78661467,145.5,145.44,28.93]
[1723990429559,7.73299695,145.49,145.44,28.93]
[1723990429776,1.78661467,145.5,145.44,28.93]
[1723990429952,7.73306112,145.49,145.44,28.93]
[1723990430149,0.12549,145.51,145.44,28.93]
[1723990430362,7.73326259,145.5,145.44,28.93]
[1723990430677,0.25098,145.51,145.44,28.93]
[1723990430885,7.733121,145.5,145.44,28.93]
[1723990431175,0.25098,145.51,145.44,28.93]
[1723990431477,7.73245324,145.5,145.44,28.93]
[1723990431678,0.25098,145.51,145.44,28.93]
[1723990431866,7.73237557,145.5,145.44,28.93]
[1723990432061,0.25098,145.51,145.44,28.93]
[1723990432273,7.73192256,145.5,145.44,28.93]
[1723990432571,3.78702198,145.51,145.44,28.93]
[1723990432752,7.73226703,145.5,145.44,28.93]
[1723990432955,45.25098,145.51,145.44,28.93]
[1723990433179,7.7322696,145.5,145.46,8.93]
[1723990433484,0.12549,145.52,145.46,8.93]
[1723990433669,7.73290529,145.51,145.46,8.93]
[1723990433877,0.12549,145.52,145.46,8.93]
[1723990434183,7.73290015,145.51,145.46,8.93]
[1723990434366,45.25098,145.52,145.46,8.93]
[1723990434564,7.73406139,145.51,145.46,8.93]
[1723990434777,45.25098,145.52,145.46,8.93]
[1723990434955,7.73386527,145.51,145.46,8.93]
[1723990435152,45.25098,145.52,145.46,8.93]
[1723990435363,7.73376827,145.51,145.46,8.93]
[1723990435573,45.25098,145.52,145.46,8.93]
[1723990435862,7.73373779,145.51,145.46,8.93]
[1723990436168,45.25098,145.52,145.46,8.93]
[1723990436363,7.72794538,145.51,145.46,8.93]
[1723990436566,45.25098,145.52,145.46,8.93]
[1723990436756,7.72793404,145.51,145.46,8.93]
[1723990436958,45.25098,145.52,145.46,8.93]
[1723990437262,7.72731315,145.51,145.46,8.93]
[1723990437465,45.25098,145.52,145.46,8.93]
[1723990437759,7.72731437,145.51,145.46,8.93]
[1723990437960,45.25098,145.52,145.46,8.93]
[1723990438279,7.72736401,145.51,145.46,8.93]
[1723990438484,45.25098,145.52,145.46,8.93]
[1723990438655,7.72734982,145.51,145.46,8.93]
[1723990438857,45.25098,145.52,145.46,8.93]
[1723990439052,9.51397182,145.51,145.39,18.372852]
[1723990439255,0.12549,145.49,145.39,6.2397]
[1723990439456,1.78661467,145.49,145.41,8.93]
[1723990439678,0.12549,145.48,145.41,8.93]
[1723990440061,1.78661467,145.48,145.39,6.2397]
[1723990440263,45.12549,145.48,145.4,24.7474]
[1723990441071,0.12549,145.48,145.42,8.93]
[1723990441258,0.25098,145.49,145.42,8.93]
[1723990441466,45.25098,145.49,145.42,8.93]
[1723990441669,45.12549,145.49,145.42,8.93]
[1723990441874,0.12549,145.49,145.42,8.93]
[1723990442580,45.12549,145.5,145.44,8.93]
[1723990445473,21.4561,145.51,145.44,8.93]
[1723990446193,6.262,145.51,145.44,8.93]
[1723990446692,1.66112467,145.5,145.44,8.93]
[1723990447467,6.262,145.51,145.44,8.93]
[1723990451075,1.66112467,145.5,145.44,8.93]
[1723990451980,0.12549,145.49,145.4,15.8174]
[1723990452190,0.12549,145.49,145.4,24.7474]
[1723990452191,1.66112467,145.48,145.4,24.7474]
[1723990452500,46.66112467,145.48,145.4,24.7474]
[1723990453989,0.12549,145.47,145.4,24.7474]
[1723990454166,0.12549,145.47,145.41,20.0]
[1723990455195,1.78661467,145.47,145.41,20.0]
[1723990458593,0.12549,145.46,145.4,15.8174]
[1723990458799,45.37647,145.46,145.37,8.93]
[1723990459006,9.50154115,145.45,145.37,8.93]
[1723990459205,45.25098,145.44,145.36,16.5957]
[1723990459381,1.78661467,145.43,145.36,16.5957]
[1723990459581,1.78661467,145.42,145.36,16.5957]
[1723990459887,1.66112467,145.42,145.36,16.5957]
[1723990460291,0.12549,145.41,145.36,16.5957]
[1723990460500,1.78661467,145.41,145.36,16.5957]
[1723990460675,1.78661467,145.41,145.33,25.5257]
[1723990462777,0.12549,145.41,145.35,8.93]
[1723990463576,45.12549,145.42,145.35,8.93]
[1723990463774,0.12549,145.42,145.35,8.93]
[1723990464000,7.71267612,145.41,145.35,8.93]
[1723990464189,3.52709653,145.42,145.35,8.93]
[1723990464385,7.712687,145.41,145.35,8.93]
[1723990464582,15.63137226,145.44,145.35,8.93]
[1723990464793,7.71270173,145.43,145.35,8.93]
[1723990464990,15.63137226,145.44,145.35,8.93]
[1723990464991,7.71270173,145.42,145.35,8.93]
[1723990465302,7.71270173,145.41,145.35,8.93]
[1723990465612,0.12549,145.43,145.35,8.93]
[1723990465786,7.71278636,145.42,145.35,8.93]
[1723990465986,7.71278636,145.41,145.35,8.93]
[1723990466206,3.52709653,145.42,145.35,8.93]
[1723990466498,7.71267868,145.41,145.35,8.93]
[1723990466706,3.52709653,145.42,145.35,8.93]
[1723990466893,7.71267868,145.41,145.35,8.93]
[1723990467087,0.37647,145.43,145.35,8.93]
[1723990467302,7.71242073,145.42,145.35,8.93]
[1723990467602,7.71242073,145.41,145.35,8.93]
[1723990467792,45.37647,145.43,145.35,8.93]
[1723990467986,7.71245957,145.42,145.35,8.93]
[1723990468190,7.71245957,145.41,145.33,16.5957]
[1723990468417,3.52700365,145.42,145.34,20.0]
[1723990468711,7.71261093,145.41,145.35,8.93]
[1723990468906,1.66112467,145.42,145.35,8.93]
[1723990469115,7.7127088,145.41,145.35,8.93]
[1723990469404,5.1882278,145.42,145.35,8.93]
[1723990469589,7.71269639,145.41,145.35,8.93]
[1723990469788,3.52710313,145.42,145.35,8.93]
[1723990470109,7.71274035,145.41,145.35,8.93]
[1723990470307,45.37647,145.43,145.35,8.93]
[1723990470513,1.66112467,145.42,145.35,8.93]
[1723990472510,1.66112467,145.42,145.34,20.0]
[1723990472511,2.86029714,145.42,145.34,20.0]
[1723990472710,0.25098,145.41,145.34,20.0]
[1723990473083,0.12549,145.4,145.33,16.5957]
[1723990473280,45.25098,145.4,145.33,16.5957]
[1723990473502,0.12549,145.39,145.33,16.5957]
[1723990474610,0.12549,145.41,145.33,25.5257]
[1723990474905,0.25098,145.41,145.33,25.5257]
[1723990476692,1.91210467,145.41,145.33,25.5257]
[1723990477218,0.25098,145.41,145.33,25.5257]
[1723990477510,0.12549,145.4,145.33,25.5257]
[1723990477690,45.37647,145.4,145.33,25.5257]
[1723990477890,0.12549,145.39,145.33,25.5257]
[1723990478104,1.78661467,145.39,145.33,16.5957]
[1723990478308,0.12549,145.39,145.33,16.5957]
[1723990481997,45.12549,145.4,145.33,16.5957]
[1723990482317,7.1837572,145.44,145.36,8.93]
[1723990483317,7.1837572,145.44,145.34,8.93]
[1723990483318,8.93,145.43,145.34,8.93]
[1723990483499,45.50196,145.42,145.34,8.93]
[1723990484111,1.66112467,145.41,145.34,8.93]
[1723990485902,45.50196,145.42,145.34,8.93]
[1723990486102,47.16308467,145.42,145.34,8.93]
[1723990487403,45.50196,145.42,145.34,8.93]
[1723990487599,45.37647,145.42,145.34,8.93]
[1723990487813,45.12549,145.42,145.36,8.93]
[1723990488020,0.12549,145.42,145.36,8.93]
[1723990489117,0.12549,145.42,145.37,15.0126]
[1723990490431,45.0,145.43,145.37,15.0126]
[1723990491202,0.12549,145.47,145.38,8.93]
[1723990491523,9.18098,145.47,145.38,8.93]
[1723990491734,1.66112467,145.46,145.38,8.93]
[1723990492105,0.12549,145.45,145.38,8.93]
[1723990492306,9.18098,145.47,145.38,8.93]
[1723990492508,0.12549,145.45,145.38,8.93]
[1723990497012,1.78661467,145.45,145.38,8.93]
[1723990497205,0.12549,145.43,145.37,15.0126]
[1723990497401,1.78661467,145.43,145.37,15.0126]
[1723990497709,0.12549,145.42,145.37,15.0126]
[1723990499434,2.03759467,145.42,145.37,15.0126]
[1723990499724,45.37647,145.42,145.37,15.0126]
[1723990500305,45.25098,145.42,145.37,15.0126]
[1723990500529,45.12549,145.42,145.37,15.0126]
[1723990500826,1.66112467,145.41,145.37,15.0126]
[1723990501329,45.12549,145.42,145.37,15.0126]
[1723990502433,16.78730971,145.41,145.31,32.19316129]
[1723990502725,52.73076578,145.4,145.31,25.0034]
[1723990502932,0.12549,145.39,145.31,25.0034]
[1723990503118,0.12549,145.39,145.33,8.93]
[1723990503312,12.25865821,145.41,145.33,8.93]
[1723990503516,0.12549,145.44,145.37,8.93]
[1723990503704,7.73270831,145.43,145.37,8.93]
[1723990503905,7.73270831,145.42,145.37,8.93]
[1723990504121,13.0812,145.46,145.39,8.93]
[1723990504122,12.00767821,145.46,145.39,8.93]
[1723990504436,19.7412996,145.45,145.43,8.93]
[1723990504630,7.18551625,145.49,145.43,8.93]
[1723990504631,12.00767821,145.48,145.43,8.93]
[1723990504929,7.73567101,145.47,145.43,8.93]
[1723990505129,12.00767821,145.52,145.44,1.37468229]
[1723990505345,19.74287182,145.51,145.43,8.93]
[1723990505626,19.74287182,145.5,145.43,8.93]
[1723990505805,19.74287182,145.49,145.43,8.93]
[1723990506002,7.73519361,145.48,145.43,8.93]
[1723990506206,7.73519361,145.47,145.44,1.37402065]
[1723990506422,12.01969351,145.5,145.44,1.37402065]
[1723990506711,7.73907451,145.49,145.42,22.26]
[1723990506923,0.12549,145.51,145.42,22.26]
[1723990507124,19.76048816,145.5,145.42,22.26]
[1723990507334,7.73963798,145.49,145.42,22.26]
[1723990507511,7.73963798,145.48,145.42,22.26]
[1723990507712,12.27183018,145.51,145.42,22.26]
[1723990507910,52.86251392,145.5,145.42,22.26]
[1723990508127,7.73702392,145.49,145.42,22.26]
[1723990508511,7.73702392,145.49,145.43,1.37490887]
[1723990509633,7.73702392,145.49,145.43,16.0734]
[1723990509828,0.12549,145.51,145.43,16.0734]
[1723990510032,7.73403778,145.5,145.43,16.0734]
[1723990510206,7.73403778,145.49,145.43,16.0734]
[1723990510411,0.12549,145.51,145.43,16.0734]
[1723990510719,7.73244173,145.5,145.43,16.0734]
[1723990511028,7.73244173,145.49,145.43,16.0734]
[1723990511238,0.12549,145.51,145.43,16.0734]
[1723990511420,7.73466531,145.5,145.43,16.0734]
[1723990511730,7.73466531,145.49,145.43,16.0734]
[1723990511910,0.12549,145.5,145.43,16.0734]
[1723990512111,7.73345706,145.49,145.43,16.0734]
[1723990512335,0.12549,145.5,145.43,16.0734]
[1723990512533,7.73069476,145.49,145.43,16.0734]
[1723990512831,0.25098,145.5,145.43,16.0734]
[1723990513037,7.85392604,145.49,145.43,16.0734]
[1723990513241,0.12549,145.49,145.43,16.0734]
[1723990515919,0.12549,145.48,145.43,16.0734]
[1723990516121,1.91210467,145.48,145.43,16.0734]
[1723990516320,46.91210467,145.48,145.43,16.0734]
[1723990517239,46.91210467,145.48,145.4,22.7494]
[1723990518045,7.8461324,145.47,145.4,22.7494]
[1723990518214,1.66112467,145.46,145.4,22.7494]
[1723990518415,1.66112467,145.45,145.4,22.7494]
[1723990519316,0.12549,145.47,145.4,22.7494]
[1723990519511,0.37647,145.47,145.4,22.7494]
[1723990519718,0.12549,145.47,145.41,1.37523689]
[1723990519926,0.12549,145.47,145.4,22.7494]
[1723990520823,45.0,145.48,145.4,45.0094]
[1723990521026,7.72350844,145.47,145.4,45.0094]
[1723990521219,11.99100987,145.51,145.42,22.26]
[1723990521444,7.72739778,145.5,145.44,22.26]
[1723990521633,18.86200987,145.54,145.45,6.4538]
[1723990521835,14.60100874,145.53,145.45,6.4538]
[1723990522142,9.39063341,145.52,145.45,6.4538]
[1723990522326,7.72950874,145.51,145.45,6.4538]
[1723990522527,9.39063341,145.5,145.45,6.4538]
[1723990522727,1.66112467,145.5,145.45,6.4538]
[1723990523638,1.78661467,145.52,145.45,6.4538]
[1723990523823,9.76733882,145.51,145.45,6.4538]
[1723990524028,52.72974415,145.5,145.45,6.4538]
[1723990524231,2.03759467,145.51,145.45,6.4538]
[1723990524448,7.72986878,145.5,145.45,6.4538]
[1723990524626,19.19587271,145.54,145.45,6.4538]
[1723990524830,7.73054655,145.53,145.45,6.4538]
[1723990525047,7.73054655,145.52,145.45,6.4538]
[1723990525226,7.73054655,145.51,145.45,6.4538]
[1723990525432,1.66112467,145.53,145.45,6.4538]
[1723990525741,7.73073252,145.52,145.45,6.4538]
[1723990525944,7.73073252,145.51,145.45,6.4538]
[1723990526142,1.66112467,145.53,145.45,6.4538]
[1723990526339,0.12549,145.52,145.45,6.4538]
[1723990526546,1.66112467,145.51,145.45,6.4538]
[1723990527047,45.50196,145.52,145.45,6.4538]
[1723990527250,45.0,145.51,145.45,6.4538]
[1723990527439,1.66112467,145.5,145.45,6.4538]
[1723990527835,0.50196,145.52,145.45,6.4538]
[1723990528233,2.16308467,145.52,145.45,6.4538]
[1723990528453,47.16308467,145.52,145.45,6.4538]
[1723990528830,2.16308467,145.52,145.45,6.4538]
[1723990529234,0.12549,145.52,145.45,6.4538]
[1723990530450,45.0,145.53,145.46,40.29102267]
[1723990530962,23.73158794,145.58,145.48,22.26]
[1723990531142,7.73058782,145.57,145.48,22.26]
[1723990531349,9.39157168,145.56,145.46,38.9163]
[1723990531535,1.66112467,145.56,145.46,38.9163]
[1723990531926,60.51233044,145.58,145.46,38.9163]
[1723990532239,0.12549,145.56,145.46,38.9163]
[1723990532448,0.12549,145.54,145.46,16.6563]
[1723990532752,2.16308467,145.54,145.46,16.6563]
[1723990533054,1.66112467,145.53,145.46,16.6563]
[1723990533266,0.12549,145.52,145.46,16.6563]
[1723990533557,1.78661467,145.52,145.46,16.6563]
[1723990533764,0.12549,145.52,145.46,16.6563]
[1723990533931,0.12549,145.53,145.46,16.6563]
[1723990534130,0.37647,145.53,145.46,16.6563]
[1723990534330,67.26,145.56,145.46,16.6563]
[1723990534553,7.72928131,145.55,145.46,38.9163]
[1723990534756,45.12549,145.54,145.46,38.9163]
[1723990535835,1.66112467,145.53,145.46,38.9163]
[1723990536158,45.12549,145.54,145.46,38.9163]
[1723990537070,1.66112467,145.53,145.46,38.9163]
[1723990537552,45.12549,145.54,145.46,38.9163]
[1723990538535,0.12549,145.56,145.46,38.9163]
[1723990538966,1.78661467,145.56,145.46,38.9163]
[1723990539535,0.12549,145.56,145.46,38.9163]
[1723990540854,1.78661467,145.56,145.46,38.9163]
[1723990541166,1.78661467,145.56,145.47,16.0936]
[1723990541949,0.12549,145.56,145.47,16.0936]
[1723990542553,0.25098,145.56,145.48,8.9]
[1723990544537,59.68120652,145.62,145.5,8.9]
[1723990544741,7.72198217,145.6,145.54,8.9]
[1723990544965,0.8664722,145.64,145.54,8.9]
[1723990544966,7.1873221,145.62,145.58,8.9]
[1723990545257,0.8664722,145.64,145.6,15.1342]
[1723990545459,0.8664722,145.64,145.61,10.27340797]
[1723990545849,0.8664722,145.64,145.63,8.9]
[1723990546273,1.1970968,145.7,145.64,15.1342]
[1723990546444,1.1970968,145.7,145.67,22.19]
[1723990546765,1.1970968,145.7,145.69,22.19]
[1723990546938,0.8664722,145.78,145.69,43.3637]
[1723990547140,7.7280091,145.77,145.7,1.37246938]
[1723990547338,0.8664722,145.78,145.7,20.0]
[1723990547571,22.19,145.77,145.69,21.1737]
[1723990548647,29.0514,145.75,145.69,15.1342]
[1723990548844,22.19,145.73,145.65,21.1737]
[1723990549040,29.052,145.73,145.65,21.1737]
[1723990549442,0.12549,145.72,145.65,21.1737]
[1723990549667,0.37647,145.72,145.65,21.1737]
[1723990549848,45.50196,145.72,145.65,21.1737]
[1723990550048,0.12549,145.7,145.65,21.1737]
[1723990550246,45.50196,145.7,145.65,21.1737]
[1723990550844,22.19,145.69,145.62,15.1342]
[1723990551057,0.12549,145.66,145.62,15.1342]
[1723990551359,45.0,145.66,145.62,15.1342]
[1723990551546,22.19,145.67,145.62,15.1342]
[1723990552150,22.31549,145.69,145.62,15.1342]
[1723990552366,45.0,145.7,145.62,15.1342]
[1723990552544,0.25098,145.69,145.62,15.1342]
[1723990553265,22.44098,145.69,145.62,15.1342]
[1723990553748,0.8664722,145.78,145.64,22.19]
[1723990553952,23.0564722,145.78,145.64,22.19]
[1723990554245,23.0564722,145.78,145.66,37.7783]
[1723990554459,23.0564722,145.78,145.67,13.0]
[1723990554661,29.9162722,145.78,145.67,13.0]
[1723990556263,6.861,145.75,145.66,15.5883]
[1723990556455,22.19,145.74,145.66,15.5883]
[1723990556659,45.0,145.73,145.66,15.5883]
[1723990556858,45.12549,145.73,145.66,15.5883]
[1723990557057,0.25098,145.73,145.66,15.5883]
[1723990557247,45.25098,145.73,145.66,15.5883]
[1723990557449,0.12549,145.72,145.66,15.5883]
[1723990558665,0.12549,145.73,145.66,15.5883]
[1723990558861,0.12549,145.74,145.66,15.5883]
[1723990559064,7.1809939,145.77,145.66,37.7783]
[1723990559257,0.12549,145.76,145.66,37.7783]
[1723990559458,7.1809939,145.77,145.66,37.7783]
[1723990560169,7.1809939,145.77,145.67,6.5259]
[1723990560384,23.0564722,145.78,145.68,20.0]
[1723990560687,0.8664722,145.78,145.68,42.19]
[1723990561456,0.8664722,145.78,145.69,16.6373]
[1723990561666,0.8664722,145.78,145.7,20.0]
[1723990562067,0.8664722,145.78,145.69,16.6373]
[1723990562274,1.66112467,145.77,145.69,16.6373]
[1723990562581,22.19,145.77,145.69,16.6373]
[1723990562879,45.37647,145.76,145.69,16.6373]
[1723990563254,0.37647,145.76,145.69,16.6373]
[1723990563481,0.8664722,145.78,145.69,16.6373]
[1723990563665,0.12549,145.77,145.7,20.0]
[1723990565364,0.8664722,145.78,145.7,20.0]
[1723990565885,22.19,145.75,145.69,16.6373]
[1723990566059,1.66112467,145.74,145.69,16.6373]
[1723990566260,22.19,145.75,145.69,16.6373]
[1723990566973,0.50196,145.74,145.69,16.6373]
[1723990567685,0.12549,145.74,145.69,16.6373]
[1723990567885,22.31549,145.77,145.69,16.6373]
[1723990568191,22.31549,145.75,145.69,16.6373]
[1723990568388,45.37647,145.74,145.69,16.6373]
[1723990568569,0.25098,145.74,145.69,16.6373]
[1723990571488,45.12549,145.76,145.69,16.6373]
[1723990571489,0.12549,145.76,145.69,16.6373]
[1723990571668,0.25098,145.76,145.69,16.6373]
[1723990571873,0.12549,145.76,145.69,16.6373]
[1723990572081,0.12549,145.76,145.7,20.0]
[1723990572693,0.8664722,145.78,145.7,20.0]
[1723990574199,0.8664722,145.78,145.71,6.1253]
[1723990574376,0.8664722,145.78,145.72,20.67941584]
[1723990574773,0.8664722,145.78,145.72,20.0]
[1723990575266,0.8664722,145.78,145.73,15.7839]
[1723990576069,0.8664722,145.78,145.74,20.0]
[1723990576390,0.8664722,145.78,145.73,15.7839]
[1723990576692,0.8664722,145.78,145.74,20.0]
[1723990576869,0.8664722,145.78,145.73,15.7839]
[1723990579804,0.8664722,145.78,145.74,20.0]
[1723990582291,0.8664722,145.78,145.75,7.73727465]
[1723990582484,0.8664722,145.78,145.76,20.0]
[1723990583600,0.8664722,145.78,145.75,6.3672]
[1723990583772,0.8664722,145.78,145.73,15.7839]
[1723990584781,0.12549,145.77,145.73,15.7839]
[1723990585072,22.69196,145.77,145.71,6.3672]
[1723990585385,45.0,145.76,145.7,16.1246]
[1723990585592,0.12549,145.75,145.7,16.1246]
[1723990585785,1.66112467,145.76,145.7,16.1246]
[1723990585998,0.12549,145.75,145.7,16.1246]
[1723990586371,22.56647,145.77,145.7,16.1246]
[1723990586801,45.12549,145.76,145.7,16.1246]
[1723990588478,0.12549,145.75,145.7,16.1246]
[1723990588827,0.12549,145.72,145.66,16.1246]
[1723990588982,0.25098,145.72,145.66,16.1246]
[1723990590509,1.66112467,145.71,145.64,6.3672]
[1723990590711,0.12549,145.69,145.62,16.1246]
[1723990590887,22.31549,145.69,145.62,16.1246]
[1723990591087,11.99661018,145.77,145.63,22.19]
[1723990591088,11.99661018,145.73,145.63,22.19]
[1723990591287,45.50196,145.72,145.63,42.67026575]
[1723990591591,22.56647,145.72,145.62,16.1246]
[1723990591903,0.12549,145.7,145.62,16.1246]
[1723990592107,0.37647,145.7,145.62,16.1246]
[1723990592315,0.25098,145.7,145.62,16.1246]
[1723990592486,14.04301419,145.74,145.62,16.1246]
[1723990592487,0.12549,145.73,145.62,16.1246]
[1723990592686,7.72658291,145.72,145.62,16.1246]
[1723990592887,45.37647,145.71,145.62,16.1246]
[1723990593101,0.12549,145.71,145.62,16.1246]
[1723990593306,0.12549,145.71,145.63,20.0]
[1723990593488,0.12549,145.72,145.63,20.0]
[1723990594698,29.17789,145.72,145.63,20.0]
[1723990594904,47.03759467,145.71,145.63,20.0]
[1723990595117,0.12549,145.7,145.63,20.0]
[1723990595903,22.19,145.68,145.62,16.1246]
[1723990596215,0.12549,145.66,145.6,6.3672]
[1723990597122,22.31549,145.66,145.6,6.3672]
[1723990597318,45.37647,145.65,145.6,6.3672]
[1723990598212,0.12549,145.65,145.6,6.3672]
[1723990599019,34.6335,145.7,145.6,7.74019005]
[1723990599201,0.12549,145.68,145.6,6.3672]
[1723990603324,1.66112467,145.67,145.6,6.3672]
[1723990603511,0.50196,145.66,145.6,6.3672]
[1723990608816,7.18391565,145.69,145.6,6.3672]
[1723990610007,0.12549,145.68,145.6,6.3672]
[1723990610213,45.50196,145.68,145.6,6.3672]
[1723990610919,0.8664722,145.78,145.67,15.7623]
[1723990611124,0.8664722,145.78,145.69,6.6113]
[1723990611320,0.8664722,145.78,145.7,20.0]
[1723990613128,0.12549,145.77,145.7,20.0]
[1723990613518,0.8664722,145.78,145.7,20.0]
[1723990614115,0.12549,145.77,145.7,20.0]
[1723990614320,0.37647,145.77,145.7,20.0]
[1723990614832,0.12549,145.76,145.7,20.0]
[1723990615136,0.37647,145.76,145.7,20.0]
[1723990615939,0.12549,145.75,145.69,6.6113]
[1723990616130,0.12549,145.74,145.69,6.6113]
[1723990616333,1.91210467,145.74,145.69,6.6113]
[1723990616917,0.12549,145.73,145.69,6.6113]
[1723990617327,0.37647,145.73,145.67,15.7623]
[1723990618535,45.37647,145.73,145.67,15.7623]
[1723990618833,0.37647,145.73,145.67,15.7623]
[1723990619226,0.12549,145.74,145.67,15.7623]
[1723990619545,0.37647,145.74,145.67,15.7623]
[1723990620643,1.66112467,145.73,145.67,15.7623]
[1723990620843,0.12549,145.72,145.67,15.7623]
[1723990621426,0.37647,145.73,145.67,15.7623]
[1723990621623,0.12549,145.72,145.65,6.197]
[1723990621846,46.91210467,145.72,145.65,6.197]
[1723990622038,0.12549,145.71,145.65,6.197]
[1723990622348,0.12549,145.7,145.63,16.2289]
[1723990622551,45.37647,145.7,145.63,16.2289]
[1723990622849,0.12549,145.69,145.63,16.2289]
[1723990623033,0.37647,145.69,145.63,16.2289]
[1723990624140,0.12549,145.71,145.63,16.2289]
[1723990624319,0.50196,145.71,145.64,1.37296514]
[1723990624519,0.12549,145.74,145.64,22.19]
[1723990624749,0.12549,145.74,145.65,21.37279293]
[1723990625048,0.12549,145.73,145.65,21.37279293]
[1723990625747,28.638,145.77,145.65,20.0]
[1723990626243,1.66112467,145.76,145.65,20.0]
[1723990626424,56.1582,145.77,145.65,20.0]
[1723990626822,0.12549,145.75,145.65,20.0]
[1723990627843,23.97661467,145.75,145.65,20.0]
[1723990628043,0.12549,145.73,145.65,20.0]